fUSD/lending_fUSD_20250330
["ID","MTS","AMOUNT","RATE_DAILY","PERIOD"]
[356851034,1743335752082,1000.0,0.00033093,30]
[356851035,1743335752828,1000.0,0.00033093,30]
[356851036,1743335753402,1000.0,0.00033093,30]
[356851037,1743335754016,1000.0,0.00033093,30]
[356851038,1743335754599,1000.0,0.00033093,30]
[356851039,1743335755475,1000.0,0.00033093,30]
[356851040,1743335756294,1000.0,0.00033093,30]
[356851041,1743335756943,1000.0,0.00033093,30]
[356851042,1743335757602,1000.0,0.00033093,30]
[356851043,1743335758201,1000.0,0.00033093,30]
[356851044,1743335758830,1000.0,0.00033093,30]
[356851045,1743335759404,1000.0,0.00033093,30]
[356851046,1743335760153,1000.0,0.00033093,30]
[356851047,1743335760730,1000.0,0.00033093,30]
[356851048,1743335762035,1000.0,0.00033093,30]
[356851049,1743335762674,1000.0,0.00033093,30]
[356851050,1743335763253,983.89347623,0.00033093,30]
[356851052,1743336361480,-376.137561,0.000149,2]
[356851053,1743336364237,-747.17206569,0.000149,2]
[356851056,1743336420893,-158.57130424,0.000149,2]
[356851075,1743336482327,-376.137561,0.000149,2]
[356851076,1743336483396,-299.28208993,0.000149,2]
[356851077,1743336542125,-158.57130424,0.000149,2]
[356851114,1743336631385,-1000.0,0.000149,2]
[356851117,1743336631493,-648.9764139,0.000149,2]
[356851118,1743336631503,-1173.04,0.00019368,2]
[356851119,1743336631512,-151.0,0.00020974,2]
[356851120,1743336631522,-151.0,0.00020975,2]
[356851121,1743336631531,-151.0,0.00020975,2]
[356851122,1743336631540,-151.0,0.00020975,2]
[356851123,1743336631549,-151.0,0.00020975,2]
[356851124,1743336631558,-151.0,0.00020975,2]
[356851125,1743336631569,-151.0,0.00020975,2]
[356851126,1743336631578,-151.0,0.00020975,2]
[356851127,1743336631587,-151.0,0.00020975,2]
[356851128,1743336631596,-151.0,0.00020975,2]
[356851129,1743336631604,-151.0,0.00020975,2]
[356851130,1743336631614,-151.0,0.00020975,2]
[356851131,1743336631623,-151.0,0.00020975,2]
[356851132,1743336631632,-151.0,0.00020975,2]
[356851133,1743336631641,-479.701645,0.00020975,2]
[356851134,1743336631650,-479.701645,0.00020975,2]
[356851135,1743336631660,-195.270556,0.00020975,2]
[356851136,1743336631669,-195.270556,0.00020975,2]
[356851137,1743336631678,-376.137561,0.00020975,2]
[356851138,1743336631687,-376.137561,0.00020975,2]
[356851139,1743336631696,-376.137561,0.00020975,2]
[356851140,1743336631705,-376.137561,0.00020975,2]
[356851141,1743336631714,-376.137561,0.00020975,2]
[356851142,1743336631723,-376.137561,0.00020975,2]
[356851143,1743336631734,-376.137561,0.00020975,2]
[356851144,1743336631743,-376.137561,0.00020975,2]
[356851145,1743336631752,-151.0,0.00020975,2]
[356851146,1743336631761,-151.0,0.00020975,2]
[356851147,1743336631771,-381.268454,0.00020975,2]
[356851148,1743336631780,-381.268454,0.00020975,2]
[356851149,1743336631789,-381.268454,0.00020975,2]
[356851150,1743336631798,-381.268454,0.00020975,2]
[356851151,1743336631810,-381.268454,0.00020975,2]
[356851152,1743336631820,-381.268454,0.00020975,2]
[356851153,1743336631829,-381.268454,0.00020975,2]
[356851154,1743336631838,-381.268454,0.00020975,2]
[356851155,1743336631847,-161.98,0.00020975,2]
[356851156,1743336631856,-871.44,0.00021122,2]
[356851158,1743336631865,-200.0,0.00021143,2]
[356851160,1743336631875,-3101.43,0.00021173,2]
[356851162,1743336631885,-1000.0,0.00021214,2]
[356851164,1743336631895,-164.84,0.00021218,2]
[356851166,1743336631904,-150.0,0.00021344,2]
[356851168,1743336631913,-589.0,0.0002137,2]
[356851170,1743336631922,-362.46910005,0.0002138,2]
[356851172,1743336631931,-663.55,0.00021406,2]
[356851174,1743336631940,-1173.04,0.00021632,2]
[356851176,1743336631950,-4167.1705066,0.00021648,2]
[356851178,1743336631959,-23900.0,0.00021658,2]
[356851180,1743336631968,-250.0,0.00021726,2]
[356851182,1743336631977,-150.0,0.0002175,7]
[356851184,1743336631986,-744.51,0.00021801,2]
[356851186,1743336631995,-362.46910006,0.00021807,2]
[356851188,1743336632005,-151.0,0.00022,7]
[356851190,1743336632015,-151.0,0.00022,7]
[356851192,1743336632024,-151.0,0.00022,7]
[356851194,1743336632033,-151.0,0.00022,7]
[356851196,1743336632042,-151.0,0.00022,7]
[356851198,1743336632052,-151.0,0.00022,7]
[356851200,1743336632061,-151.0,0.00022,7]
[356851202,1743336632070,-151.0,0.00022,7]
[356851204,1743336632079,-151.0,0.00022,7]
[356851206,1743336632088,-297.943121,0.00022,7]
[356851208,1743336632097,-151.0,0.00022,7]
[356851210,1743336632107,-151.0,0.00022,7]
[356851212,1743336632116,-298.971361,0.00022,7]
[356851214,1743336632130,-153.447523,0.00022,7]
[356851216,1743336632148,-479.701645,0.00022,7]
[356851218,1743336632160,-479.701645,0.00022,7]
[356851220,1743336632169,-195.270556,0.00022,7]
[356851222,1743336632178,-195.270556,0.00022,7]
[356851224,1743336632188,-376.137561,0.00022,7]
[356851226,1743336632197,-376.137561,0.00022,7]
[356851228,1743336632207,-376.137561,0.00022,7]
[356851230,1743336632216,-376.137561,0.00022,7]
[356851232,1743336632225,-376.137561,0.00022,7]
[356851234,1743336632234,-376.137561,0.00022,7]
[356851236,1743336632243,-376.137561,0.00022,7]
[356851238,1743336632252,-376.137561,0.00022,7]
[356851240,1743336632261,-151.0,0.00022,7]
[356851242,1743336632271,-151.0,0.00022,7]
[356851244,1743336632280,-200.0,0.00022,2]
[356851246,1743336632289,-381.268454,0.00022,7]
[356851248,1743336632298,-381.268454,0.00022,7]
[356851250,1743336632307,-381.268454,0.00022,7]
[356851252,1743336632316,-381.268454,0.00022,7]
[356851254,1743336632325,-381.268454,0.00022,7]
[356851256,1743336632335,-381.268454,0.00022,7]
[356851258,1743336632344,-381.268454,0.00022,7]
[356851260,1743336632354,-381.268454,0.00022,7]
[356851262,1743336632363,-2247.6928612,0.00022007,2]
[356851264,1743336632372,-812.1,0.00022022,2]
[356851266,1743336632382,-1468.45,0.00022067,2]
[356851268,1743336632395,-984.4,0.0002208,2]
[356851270,1743336632405,-200.0,0.0002222,2]
[356851272,1743336632414,-151.0,0.00022389,7]
[356851274,1743336632424,-151.0,0.00022389,7]
[356851276,1743336632433,-151.0,0.00022389,7]
[356851278,1743336632442,-479.701645,0.00022389,7]
[356851281,1743336632452,-479.701645,0.00022389,7]
[356851283,1743336632461,-151.0,0.00022389,7]
[356851285,1743336632470,-181.126778,0.00022389,7]
[356851287,1743336632479,-172.0622,0.000224,2]
[356851289,1743336632489,-1577.9843,0.000224,2]
[356851291,1743336632498,-200.0,0.00022442,2]
[356851293,1743336632507,-22771.53461997,0.000225,2]
[356851295,1743336632518,-456.47439,0.000225,6]
[356851297,1743336632528,-456.47439,0.000225,6]
[356851299,1743336632537,-151.0,0.000225,7]
[356851301,1743336632547,-363.373387,0.000225,7]
[356851303,1743336632556,-363.373387,0.000225,7]
[356851305,1743336632565,-746.292473,0.000225,7]
[356851307,1743336632574,-746.292473,0.000225,7]
[356851309,1743336632584,-151.0,0.000225,7]
[356851311,1743336632593,-151.0,0.000225,7]
[356851313,1743336632603,-151.0,0.000225,7]
[356851315,1743336632612,-151.0,0.000225,7]
[356851317,1743336632621,-151.0,0.000225,7]
[356851319,1743336632631,-151.0,0.000225,7]
[356851321,1743336632640,-151.0,0.000225,7]
[356851323,1743336632650,-151.0,0.000225,7]
[356851325,1743336632659,-151.0,0.000225,7]
[356851327,1743336632668,-233.363494,0.000225,7]
[356851329,1743336632677,-151.0,0.000225,7]
[356851331,1743336632686,-479.701645,0.000225,7]
[356851333,1743336632695,-479.701645,0.000225,7]
[356851335,1743336632705,-195.270556,0.000225,7]
[356851337,1743336632714,-195.270556,0.000225,7]
[356851339,1743336632724,-376.137561,0.000225,7]
[356851341,1743336632737,-376.137561,0.000225,7]
[356851343,1743336632746,-376.137561,0.000225,7]
[356851345,1743336632755,-376.137558,0.000225,7]
[356851347,1743336632765,-151.0,0.000225,7]
[356851349,1743336632774,-381.268454,0.000225,7]
[356851351,1743336632784,-381.268454,0.000225,7]
[356851353,1743336632793,-381.268454,0.000225,7]
[356851355,1743336632802,-381.268462,0.000225,7]
[356851357,1743336632812,-503.20094538,0.0002271,2]
[356851359,1743336632822,-1480.9222609,0.000229,2]
[356851361,1743336632831,-2500.0,0.000229,2]
[356851363,1743336632840,-161.02077043,0.00022973,2]
[356851365,1743336632850,-500.0,0.00022973,2]
[356851367,1743336632859,-250.3051,0.00023,2]
[356851369,1743336632868,-35998.4824,0.00023,2]
[356851371,1743336632879,-66244.2908,0.00023,2]
[356851373,1743336632887,-500.0,0.00023,2]
[356851375,1743336632897,-151.0,0.00023,7]
[356851377,1743336632906,-2835.315565,0.00023,7]
[356851379,1743336632915,-2835.315565,0.00023,7]
[356851381,1743336632925,-151.0,0.00023,7]
[356851383,1743336632934,-151.0,0.00023,7]
[356851385,1743336632944,-299.649869,0.00023,7]
[356851387,1743336632953,-299.649869,0.00023,7]
[356851401,1743336633071,-163.329996,0.00023,7]
[356851403,1743336633081,-157.307026,0.00023,7]
[356851405,1743336633091,-163.329996,0.00023,7]
[356851407,1743336633101,-157.307026,0.00023,7]
[356851409,1743336633110,-151.0,0.00023,7]
[356851411,1743336633119,-151.0,0.00023,7]
[356851413,1743336633129,-364.425184,0.00023,7]
[356851415,1743336633139,-174.506227,0.00023,7]
[356851418,1743336633148,-364.425184,0.00023,7]
[356851420,1743336633158,-499.6743,0.00023,2]
[356851422,1743336633167,-2315.035441,0.00023,7]
[356851424,1743336633176,-151.0,0.00023,7]
[356851426,1743336633186,-2315.035441,0.00023,7]
[356851428,1743336633195,-277.446909,0.00023,7]
[356851429,1743336633204,-277.446909,0.00023,7]
[356851431,1743336633214,-151.0,0.00023,7]
[356851433,1743336633223,-151.0,0.00023,7]
[356851435,1743336633232,-232.619962,0.00023,7]
[356851437,1743336633242,-232.619962,0.00023,7]
[356851439,1743336633252,-164.70553,0.00023,7]
[356851442,1743336633261,-164.70553,0.00023,7]
[356851443,1743336633271,-293.88731,0.00023,7]
[356851446,1743336633281,-293.88731,0.00023,7]
[356851447,1743336633290,-1966.90364375,0.00023,2]
[356851450,1743336633300,-401.64910417,0.0002301,2]
[356851452,1743336633309,-151.0,0.000231,7]
[356851454,1743336633319,-151.0,0.000231,7]
[356851455,1743336633328,-151.0,0.000231,7]
[356851458,1743336633337,-542.319687,0.000231,7]
[356851460,1743336633348,-144.1042291,0.000231,7]
[356851490,1743336633630,-398.2154579,0.000231,7]
[356851492,1743336633639,-151.0,0.000231,7]
[356851494,1743336633649,-151.0,0.000231,7]
[356851496,1743336633658,-151.0,0.000231,7]
[356851498,1743336633667,-116.20531459,0.000231,7]
[356851500,1743336633678,-34.79468541,0.000231,7]
[356851502,1743336633687,-151.0,0.000231,7]
[356851504,1743336633697,-151.0,0.000231,7]
[356851506,1743336633706,-151.0,0.000231,7]
[356851508,1743336633716,-17.60732843,0.000231,7]
[356851511,1743336633730,-133.39267157,0.000231,7]
[356851513,1743336633740,-151.0,0.000231,7]
[356851515,1743336633749,-151.0,0.000231,7]
[356851517,1743336633758,-151.0,0.000231,7]
[356851519,1743336633769,-151.0,0.000231,7]
[356851521,1743336633779,-212.608142,0.000231,7]
[356851523,1743336633788,-151.0,0.000231,7]
[356851525,1743336633797,-151.0,0.000231,7]
[356851527,1743336633807,-151.0,0.000231,7]
[356851529,1743336633818,-151.0,0.000231,7]
[356851531,1743336633827,-288.510051,0.000231,7]
[356851533,1743336633836,-288.510051,0.000231,7]
[356851535,1743336633845,-15.97908452,0.000231,7]
[356851537,1743336633857,-272.53096648,0.000231,7]
[356851539,1743336633866,-288.510051,0.000231,7]
[356851541,1743336633875,-346.39388713,0.000231,7]
[356851543,1743336633887,-16.97949987,0.000231,7]
[356851545,1743336633895,-363.373387,0.000231,7]
[356851547,1743336633906,-307.17239085,0.000231,7]
[356851549,1743336633917,-56.20099615,0.000231,7]
[356851551,1743336633926,-363.373387,0.000231,7]
[356851553,1743336633935,-287.34684436,0.000231,7]
[356851557,1743336633961,-76.02654264,0.000231,7]
[356851559,1743336633970,-347.27376501,0.000231,7]
[356851563,1743336633997,-16.09962199,0.000231,7]
[356851565,1743336634007,-363.373387,0.000231,7]
[356851567,1743336634017,-363.373387,0.000231,7]
[356851569,1743336634026,-746.292473,0.000231,7]
[356851571,1743336634035,-746.292473,0.000231,7]
[356851573,1743336634045,-746.292473,0.000231,7]
[356851575,1743336634054,-746.292473,0.000231,7]
[356851577,1743336634063,-746.292473,0.000231,7]
[356851579,1743336634072,-746.292473,0.000231,7]
[356851581,1743336634082,-746.292473,0.000231,7]
[356851583,1743336634091,-746.292473,0.000231,7]
[356851585,1743336634100,-151.0,0.000231,7]
[356851587,1743336634109,-204.36682,0.000231,7]
[356851589,1743336634119,-151.0,0.000231,7]
[356851591,1743336634128,-151.0,0.000231,7]
[356851593,1743336634138,-151.0,0.000231,7]
[356851595,1743336634147,-298.472215,0.000231,7]
[356851597,1743336634156,-151.0,0.000231,7]
[356851599,1743336634166,-151.0,0.000231,7]
[356851601,1743336634175,-151.0,0.000231,7]
[356851603,1743336634185,-155.379504,0.000231,7]
[356851605,1743336634194,-151.0,0.000231,7]
[356851607,1743336634204,-151.0,0.000231,7]
[356851609,1743336634213,-151.0,0.000231,7]
[356851611,1743336634222,-153.877569,0.000231,7]
[356851613,1743336634231,-151.0,0.000231,7]
[356851615,1743336634241,-151.0,0.000231,7]
[356851617,1743336634250,-152.672134,0.000231,7]
[356851619,1743336634259,-151.0,0.000231,7]
[356851621,1743336634269,-151.0,0.000231,7]
[356851623,1743336634278,-151.0,0.000231,7]
[356851636,1743336634403,-151.0,0.000231,7]
[356851637,1743336634413,-151.0,0.000231,7]
[356851638,1743336634423,-151.0,0.000231,7]
[356851639,1743336634432,-151.0,0.000231,7]
[356851640,1743336634442,-151.0,0.000231,7]
[356851641,1743336634452,-151.0,0.000231,7]
[356851642,1743336634462,-151.0,0.000231,7]
[356851643,1743336634472,-151.0,0.000231,7]
[356851644,1743336634481,-261.317698,0.000231,7]
[356851645,1743336634491,-151.0,0.000231,7]
[356851646,1743336634501,-151.0,0.000231,7]
[356851647,1743336634511,-151.0,0.000231,7]
[356851648,1743336634521,-151.0,0.000231,7]
[356851649,1743336634531,-155.564759,0.000231,7]
[356851650,1743336634540,-153.375632,0.000231,7]
[356851651,1743336634550,-151.0,0.000231,7]
[356851652,1743336634559,-479.701645,0.000231,7]
[356851653,1743336634569,-479.701645,0.000231,7]
[356851655,1743336634579,-479.701645,0.000231,7]
[356851656,1743336634588,-479.701645,0.000231,7]
[356851657,1743336634598,-479.701645,0.000231,7]
[356851659,1743336634607,-479.701645,0.000231,7]
[356851661,1743336634617,-479.701645,0.000231,7]
[356851663,1743336634626,-479.701645,0.000231,7]
[356851665,1743336634635,-151.0,0.000231,7]
[356851667,1743336634645,-195.270556,0.000231,7]
[356851669,1743336634655,-195.270556,0.000231,7]
[356851671,1743336634664,-195.270556,0.000231,7]
[356851673,1743336634673,-195.270556,0.000231,7]
[356851674,1743336634682,-195.270556,0.000231,7]
[356851676,1743336634691,-195.270556,0.000231,7]
[356851679,1743336634703,-195.270556,0.000231,7]
[356851680,1743336634714,-195.270556,0.000231,7]
[356851682,1743336634724,-195.270556,0.000231,7]
[356851683,1743336634739,-195.270556,0.000231,7]
[356851685,1743336634748,-151.0,0.000231,7]
[356851687,1743336634758,-151.0,0.000231,7]
[356851689,1743336634767,-151.0,0.000231,7]
[356851691,1743336634777,-151.0,0.000231,7]
[356851693,1743336634787,-151.0,0.000231,7]
[356851695,1743336634796,-151.0,0.000231,7]
[356851697,1743336634806,-151.0,0.000231,7]
[356851699,1743336634816,-151.0,0.000231,7]
[356851701,1743336634825,-151.0,0.000231,7]
[356851702,1743336634834,-151.0,0.000231,7]
[356851704,1743336634843,-151.0,0.000231,7]
[356851706,1743336634852,-226.739621,0.000231,7]
[356851708,1743336634861,-151.0,0.000231,7]
[356851710,1743336634871,-151.418382,0.000231,7]
[356851712,1743336634880,-306.81131,0.000231,7]
[356851714,1743336634890,-306.81131,0.000231,7]
[356851716,1743336634899,-306.81131,0.000231,7]
[356851718,1743336634909,-306.81131,0.000231,7]
[356851720,1743336634918,-306.81131,0.000231,7]
[356851722,1743336634928,-306.81131,0.000231,7]
[356851724,1743336634937,-306.81131,0.000231,7]
[356851726,1743336634946,-306.81131,0.000231,7]
[356851728,1743336634955,-151.0,0.000231,7]
[356851730,1743336634965,-151.0,0.000231,7]
[356851732,1743336634974,-151.0,0.000231,7]
[356851734,1743336634984,-151.0,0.000231,7]
[356851736,1743336634993,-162.293638,0.000231,7]
[356851738,1743336635003,-151.0,0.000231,7]
[356851740,1743336635012,-151.0,0.000231,7]
[356851742,1743336635021,-155.558984,0.000231,7]
[356851744,1743336635031,-454.097864,0.000231,7]
[356851746,1743336635041,-454.097864,0.000231,7]
[356851748,1743336635051,-454.097864,0.000231,7]
[356851750,1743336635059,-454.097864,0.000231,7]
[356851752,1743336635069,-454.097864,0.000231,7]
[356851754,1743336635079,-454.097864,0.000231,7]
[356851756,1743336635089,-454.097864,0.000231,7]
[356851757,1743336635099,-454.097864,0.000231,7]
[356851759,1743336635108,-151.0,0.000231,7]
[356851761,1743336635117,-151.0,0.000231,7]
[356851763,1743336635127,-151.0,0.000231,7]
[356851765,1743336635136,-151.0,0.000231,7]
[356851767,1743336635145,-151.0,0.000231,7]
[356851769,1743336635154,-151.0,0.000231,7]
[356851771,1743336635163,-151.0,0.000231,7]
[356851773,1743336635173,-151.0,0.000231,7]
[356851775,1743336635182,-231.914525,0.000231,7]
[356851777,1743336635191,-231.914525,0.000231,7]
[356851779,1743336635200,-231.914525,0.000231,7]
[356851781,1743336635209,-231.914525,0.000231,7]
[356851783,1743336635218,-231.914525,0.000231,7]
[356851784,1743336635227,-231.914525,0.000231,7]
[356851786,1743336635237,-231.914525,0.000231,7]
[356851788,1743336635247,-151.0,0.000231,7]
[356851790,1743336635256,-231.914525,0.000231,7]
[356851792,1743336635265,-151.0,0.000231,7]
[356851795,1743336635275,-231.914525,0.000231,7]
[356851796,1743336635285,-151.871544,0.000231,7]
[356851798,1743336635295,-231.914525,0.000231,7]
[356851800,1743336635304,-151.0,0.000231,7]
[356851802,1743336635313,-151.0,0.000231,7]
[356851804,1743336635322,-151.0,0.000231,7]
[356851806,1743336635332,-151.0,0.000231,7]
[356851808,1743336635341,-151.0,0.000231,7]
[356851810,1743336635350,-151.0,0.000231,7]
[356851812,1743336635359,-151.0,0.000231,7]
[356851814,1743336635369,-151.0,0.000231,7]
[356851816,1743336635379,-151.0,0.000231,7]
[356851818,1743336635389,-2835.315565,0.000231,7]
[356851820,1743336635398,-2835.315565,0.000231,7]
[356851822,1743336635408,-2835.315565,0.000231,7]
[356851824,1743336635417,-2835.315565,0.000231,7]
[356851826,1743336635428,-2835.315565,0.000231,7]
[356851828,1743336635437,-2835.315565,0.000231,7]
[356851830,1743336635447,-2835.315565,0.000231,7]
[356851832,1743336635456,-2835.315565,0.000231,7]
[356851834,1743336635466,-151.0,0.000231,7]
[356851836,1743336635475,-151.949207,0.000231,7]
[356851838,1743336635485,-151.0,0.000231,7]
[356851840,1743336635494,-158.008296,0.000231,7]
[356851842,1743336635504,-154.719995,0.000231,7]
[356851844,1743336635513,-299.649869,0.000231,7]
[356851846,1743336635523,-299.649869,0.000231,7]
[356851848,1743336635532,-299.649869,0.000231,7]
[356851850,1743336635542,-299.649869,0.000231,7]
[356851852,1743336635551,-299.649869,0.000231,7]
[356851854,1743336635561,-299.649869,0.000231,7]
[356851856,1743336635570,-299.649869,0.000231,7]
[356851858,1743336635579,-299.649869,0.000231,7]
[356851860,1743336635588,-163.329996,0.000231,7]
[356851862,1743336635598,-163.329996,0.000231,7]
[356851864,1743336635607,-163.329996,0.000231,7]
[356851866,1743336635616,-163.329996,0.000231,7]
[356851867,1743336635625,-157.307026,0.000231,7]
[356851869,1743336635635,-157.307026,0.000231,7]
[356851872,1743336635644,-157.307026,0.000231,7]
[356851873,1743336635654,-163.329996,0.000231,7]
[356851875,1743336635663,-163.329996,0.000231,7]
[356851877,1743336635671,-163.329996,0.000231,7]
[356851879,1743336635681,-157.307026,0.000231,7]
[356851881,1743336635691,-163.329996,0.000231,7]
[356851883,1743336635701,-157.307026,0.000231,7]
[356851885,1743336635710,-157.307026,0.000231,7]
[356851887,1743336635719,-151.0,0.000231,7]
[356851889,1743336635731,-151.0,0.000231,7]
[356851891,1743336635741,-151.0,0.000231,7]
[356851893,1743336635750,-213.128068,0.000231,7]
[356851895,1743336635759,-151.0,0.000231,7]
[356851897,1743336635769,-151.0,0.000231,7]
[356851899,1743336635778,-229.565867,0.000231,7]
[356851901,1743336635787,-364.425184,0.000231,7]
[356851903,1743336635797,-364.425184,0.000231,7]
[356851905,1743336635807,-364.425184,0.000231,7]
[356851907,1743336635817,-174.506227,0.000231,7]
[356851909,1743336635826,-174.506227,0.000231,7]
[356851911,1743336635835,-174.506227,0.000231,7]
[356851913,1743336635844,-364.425184,0.000231,7]
[356851915,1743336635854,-364.425184,0.000231,7]
[356851917,1743336635863,-364.425184,0.000231,7]
[356851929,1743336635966,-2315.035441,0.000231,7]
[356851931,1743336635975,-2315.035441,0.000231,7]
[356851933,1743336635984,-2315.035441,0.000231,7]
[356851935,1743336635993,-151.0,0.000231,7]
[356851937,1743336636002,-151.0,0.000231,7]
[356851939,1743336636011,-2315.035441,0.000231,7]
[356851941,1743336636020,-2315.035441,0.000231,7]
[356851943,1743336636029,-2315.035441,0.000231,7]
[356851945,1743336636038,-277.446909,0.000231,7]
[356851947,1743336636047,-277.446909,0.000231,7]
[356851949,1743336636056,-277.446909,0.000231,7]
[356851951,1743336636065,-277.446909,0.000231,7]
[356851953,1743336636073,-277.446909,0.000231,7]
[356851955,1743336636084,-277.446909,0.000231,7]
[356851957,1743336636093,-152.540197,0.000231,7]
[356851959,1743336636102,-151.0,0.000231,7]
[356851961,1743336636111,-151.0,0.000231,7]
[356851962,1743336636120,-232.619962,0.000231,7]
[356851964,1743336636129,-232.619962,0.000231,7]
[356851967,1743336636141,-232.619962,0.000231,7]
[356851969,1743336636151,-232.619962,0.000231,7]
[356851971,1743336636160,-151.0,0.000231,7]
[356851973,1743336636169,-151.0,0.000231,7]
[356851975,1743336636178,-151.0,0.000231,7]
[356851977,1743336636189,-170.043109,0.000231,7]
[356851979,1743336636198,-151.0,0.000231,7]
[356851981,1743336636207,-204.536839,0.000231,7]
[356851983,1743336636217,-1691.825242,0.000231,7]
[356851985,1743336636226,-1691.825242,0.000231,7]
[356851987,1743336636235,-1691.825242,0.000231,7]
[356851989,1743336636244,-1691.825242,0.000231,7]
[356851991,1743336636253,-1691.825242,0.000231,7]
[356851993,1743336636263,-1691.825242,0.000231,7]
[356851995,1743336636272,-151.0,0.000231,7]
[356851997,1743336636281,-151.0,0.000231,7]
[356851999,1743336636290,-151.0,0.000231,7]
[356852001,1743336636299,-151.0,0.000231,7]
[356852003,1743336636309,-151.0,0.000231,7]
[356852005,1743336636318,-151.0,0.000231,7]
[356852007,1743336636327,-164.70553,0.000231,7]
[356852009,1743336636336,-164.70553,0.000231,7]
[356852011,1743336636346,-151.0,0.000231,7]
[356852013,1743336636356,-151.0,0.000231,7]
[356852015,1743336636365,-151.0,0.000231,7]
[356852017,1743336636375,-164.70553,0.000231,7]
[356852019,1743336636384,-164.70553,0.000231,7]
[356852020,1743336636394,-189.323502,0.000231,7]
[356852022,1743336636404,-305.811413,0.000231,7]
[356852025,1743336636413,-305.811413,0.000231,7]
[356852026,1743336636422,-305.811413,0.000231,7]
[356852029,1743336636432,-305.811413,0.000231,7]
[356852030,1743336636441,-305.811413,0.000231,7]
[356852032,1743336636450,-305.811413,0.000231,7]
[356852034,1743336636459,-10000.0,0.000231,7]
[356852036,1743336636468,-10000.0,0.000231,7]
[356852038,1743336636477,-10000.0,0.000231,7]
[356852040,1743336636486,-151.0,0.000231,7]
[356852042,1743336636495,-151.0,0.000231,7]
[356852044,1743336636505,-151.0,0.000231,7]
[356852046,1743336636514,-151.0,0.000231,7]
[356852048,1743336636523,-151.0,0.000231,7]
[356852050,1743336636534,-151.0,0.000231,7]
[356852052,1743336636544,-151.0,0.000231,7]
[356852054,1743336636554,-151.0,0.000231,7]
[356852056,1743336636563,-151.0,0.000231,7]
[356852058,1743336636572,-293.88731,0.000231,7]
[356852060,1743336636581,-293.88731,0.000231,7]
[356852062,1743336636591,-151.0,0.000231,7]
[356852064,1743336636599,-151.0,0.000231,7]
[356852066,1743336636609,-151.0,0.000231,7]
[356852068,1743336636619,-293.88731,0.000231,7]
[356852070,1743336636629,-293.88731,0.000231,7]